Cogmind - Beta 17.1 @@@ ROGUE MODE // 2026.08.25 @ 18:39:20 Player: Perseus Result: Destroyed by G-47 Trooper with Particle Gun Performance ------------- Evolutions (0) 0 Regions Visited (2) 400 Robots Destroyed (30) 150 Value Destroyed (556) 556 Prototype IDs (3) 60 Alien Tech Used (0) 0 Bonus (0) 0 TOTAL SCORE: 1166 Bonus ------- None Cogmind --------- Core Integrity 0/250 Matter 290/300 Energy 250/250 System Corruption 0% Temperature Cool (27) Movement Rolling (105) Ox1 Location -10/Mines Parts ------- > --- POWER (1) -------- Ion Engine > --- PROPULSION (2) --- Armored Wheel Armored Wheel > --- UTILITY (2) ------ Large Storage Unit Light Armor Plating > --- WEAPON (2) ------- Light Assault Rifle Light Assault Rifle > --- INVENTORY (15) --- Ion Engine Ion Engine Light Ion Engine Light Nuclear Core Armored Wheel Large Storage Unit Seismic Detector Light Armor Plating Shield Generator Beam Cannon Light Assault Rifle Mining Laser Explosive Trap Peak State ------------ > --- POWER ------------ Ion Engine > --- PROPULSION ------- Light Treads Light Treads > --- UTILITY ---------- Large Storage Unit Improved Terrain Scanner > --- WEAPON ----------- EM Pulse Gun Light Assault Rifle > --- INVENTORY -------- Ion Engine Ion Engine Light Ion Engine Light Nuclear Core Armored Wheel Armored Wheel Armored Wheel Large Storage Unit Visual Processing Unit Seismic Detector Shield Generator Beam Cannon Light Assault Rifle Light Assault Rifle Mining Laser [Rating: 11] Favorites ----------- Power Ion Engine Engine Ion Engine Propulsion Light Treads Treads Light Treads Wheel Armored Wheel Utility Large Storage Unit Device Improved Terrain Scanner Storage Large Storage Unit Protection Light Armor Plating Weapon Light Assault Rifle Energy Gun EM Pulse Gun Energy Cannon Beam Cannon Ballistic Gun Light Assault Rifle Build | -11 -10 -10 ------- Run | Yrd Mat Min Slots Evolved . | . . . Power . | . . . Propulsion . | . . . Utility . | . . . Weapon . | . . . Parts Attached 16 | 8 6 2 Power 3 | 2 1 . Engine 3 | 2 1 . Core . | . . . Reactor . | . . . Propulsion 4 | 2 . 2 Treads 2 | 2 . . Leg . | . . . Wheel 2 | . . 2 Hover . | . . . Flight . | . . . Utility 4 | 2 2 . Device 1 | 1 . . Storage 2 | 1 1 . Processor . | . . . Hackware . | . . . Protection 1 | . 1 . Artifact . | . . . Weapon 5 | 2 3 . Energy Gun 2 | 1 1 . Energy Cannon 1 | . 1 . Ballistic Gun 2 | 1 1 . Ballistic Cannon . | . . . Launcher . | . . . Special Weapon . | . . . Impact Weapon . | . . . Slashing Weapon . | . . . Piercing Weapon . | . . . Special Melee Weapon . | . . . Unidentified Prototypes . | . . . Parts Lost 4 | . 2 2 Power . | . . . Propulsion 2 | . . 2 Utility . | . . . Weapon 2 | . 2 . Highest Loss Streak 2 | . 1 2 To Critical Strikes . | . . . Average Backups 12 | 5 12 13 Power 2 | . 2 4 Propulsion 2 | 3 2 2 Utility 3 | . 3 4 Weapon 3 | . 3 3 Tool/Special . | . . . Unused Backups 15 | . 4 11 Power 3 | . . 3 Propulsion 5 | . 4 1 Utility 5 | . . 5 Weapon 2 | . . 2 Tool/Special . | . . . Average Slot Usage (%) 99 | . 99 100 Engine 14 | . 14 14 Treads 24 | . 28 14 Wheel 3 | . . 14 Device 7 | . 9 . Storage 14 | . 14 14 Protection 6 | . 4 14 Energy Gun 7 | . 10 . Energy Cannon 1 | . 2 . Ballistic Gun 18 | . 15 28 Peak Build Rating 11 | 9 11 10 Average Rating 9 | 6 9 9 On Entrance 6 | . 9 9 Avg Prop Armor Cover (%) . | . . . Naked Turns . | . . . Heaviest Build 32 | 14 32 30 Greatest Support 40 | 40 40 40 Greatest Overweight (x) 1 | . . 1 Average Overweight (x) . | . . . Largest Inventory Capacity 15 | 8 15 15 Average Capacity 14 | 6 14 15 Most Carried 15 | 8 15 15 Average Carried 12 | 5 13 13 Final Capacity 15 | 8 15 15 Final Carried 15 | 8 15 13 Class Distribution -------------------- 100% | Mutant Dominant Class ---------------- Mutant | -10/Materials Mutant | -10/Mines Resources | -11 -10 -10 ----------- Run | Yrd Mat Min Matter Collected 475 | 291 118 66 Remotely . | . . . Salvage Created 1024 | 120 653 251 Parts 62 | 11 41 10 Haulers Intercepted 1 | . 1 . Recyclers Shooed . | . . . Parts Field Recycled . | . . . Retrieved Matter . | . . . Parts Self-Destructed . | . . . Prevented . | . . . Parts Restored . | . . . Kills | -11 -10 -10 ------- Run | Yrd Mat Min Combat Hostiles Destroyed 19 | . 16 3 Guns 18 | . 15 3 AOE 1 | . 1 . Classes Destroyed 7 | 2 5 . Worker 1 | . 1 . Tunneler 3 | 3 . . Hauler 1 | . 1 . Recycler 4 | 1 . 3 Watcher 2 | . 2 . Swarmer 9 | . 6 3 Grunt 10 | . 10 . Best Kill Streak 5 | 2 3 5 Combat Bots Only 3 | . 3 3 Max Kills in Single Turn 2 | 1 1 2 Gunslinging . | . . . Exploded 1 | . 1 . Melee . | . . . Uniques/NPCs Destroyed . | . . . Combat | -11 -10 -10 -------- Run | Yrd Mat Min Hostile Shots Fired 103 | . 83 20 Missed 27 | . 23 4 Hits 76 | . 60 16 Projectile 76 | . 60 16 Damage Taken 892 | . 715 177 Core 252 | . 225 27 Absorbed by Shields . | . . . Core Remaining (%) 100 | 100 . . Volleys Fired 101 | 11 70 20 Largest 2 | 2 2 2 Hottest 80 | 60 80 40 Shots Fired 202 | 22 140 40 Gun 194 | 22 132 40 Cannon 8 | . 8 . Launcher . | . . . Special . | . . . Kinetic 128 | 11 77 40 Thermal 8 | . 8 . Explosive . | . . . Electromagnetic 66 | 11 55 . Robot Hit Streak 17 | 11 17 11 Robot Miss Streak 6 | 1 6 3 Penetration Max . | . . . Secondary Targets 5 | . 4 1 Max Gunslinging Chain 1 | . 1 1 Shots Hit Robots 125 | 16 83 26 Core Hits 56 | 4 38 14 Critical Kills 1 | . 1 . Critical Parts Destroyed 1 | 1 . . Critical Strikes 2 | 1 1 . Destroy 2 | 1 1 . Melee Attacks . | . . . Impact . | . . . Slashing . | . . . Piercing . | . . . Sneak Attacks . | . . . Combat Hostiles . | . . . Follow-up Attacks . | . . . Damage Inflicted 1607 | 220 1155 232 Guns 1293 | 184 877 232 Cannons 53 | . 53 . Explosions 261 | 36 225 . Melee . | . . . Ramming . | . . . Kinetic 649 | 62 355 232 Thermal 314 | 36 278 . Explosive . | . . . Electromagnetic 644 | 122 522 . Impact . | . . . Slashing . | . . . Piercing . | . . . Highest Corruption . | . . . Average Corruption . | . . . Corruption Purged . | . . . Corruption Blocked . | . . . Overload Shots . | . . . Overflow Damage 43 | . 43 . Projectiles . | . . . Explosions 43 | . 43 . Melee . | . . . Knockbacks . | . . . Impact . | . . . Kinetic . | . . . Secondary . | . . . Self-Inflicted Damage 67 | . 67 . Shots 2 | . 2 . Rammed . | . . . Targets Rammed . | . . . Kicked . | . . . Crushed . | . . . Highest Temperature 222 | 60 222 18 Average Temperature 39 | 25 47 6 Received Heat Transfer 339 | . 294 45 Siege Activations . | . . . Martial Activations . | . . . Shielding Activations . | . . . Robots Disrupted . | . . . Combat Hostiles . | . . . Robots Corrupted . | . . . Combat Hostiles . | . . . Parts Fried 1 | 1 . . Impact Corruptions . | . . . Robots Melted . | . . . Combat Hostiles . | . . . Parts Melted 1 | . 1 . Heat Transferred 461 | . 461 . Parts Sabotaged . | . . . Parts Stolen . | . . . Parts Stripped . | . . . Power Chain Reactions 5 | 1 4 . Alert | -11 -10 -10 ------- Run | Yrd Mat Min Maximum Alert Level 1 | . 1 . Low Security (%) 99 | 100 98 100 Level 1 . | . 1 . Level 2 . | . . . Level 3 . | . . . Level 4 . | . . . Level 5 . | . . . High Security . | . . . Max Security . | . . . Peak Influence 202 | 10 202 73 Initial 73 | . . 73 Average 66 | 1 82 43 Influence Increases 668 | 20 533 115 Destroy 0b10 Robot/C 380 | . 320 60 Destroy 0b10 Robot/NC 55 | 20 20 15 Destroy Leader 76 | . 66 10 Successful Hack 31 | . 31 . Disable Machine 30 | . 30 . Destroy Structure 21 | . 21 . Lose Combat Pursuer 75 | . 45 30 Influence Decreases 630 | 20 343 267 Entered New Map 117 | . . 117 Time Decay 473 | 20 323 130 Lost Part 40 | . 20 20 Squads Dispatched 2 | . 2 . Investigation 2 | . 2 . Extermination . | . . . Reinforcement . | . . . Assault . | . . . Garrison . | . . . Intercept . | . . . Searches Triggered . | . . . Construction Impeded . | . . . Haulers Reinforced . | . . . Active Scanning Responses . | . . . Cargo Convoy Interrupts . | . . . Stealth | -11 -10 -10 --------- Run | Yrd Mat Min Distress Signals . | . . . Communications Jammed . | . . . Distress Signals . | . . . Times Spotted 28 | . 22 6 Peak Tracking Total 3 | . 3 3 Tactical Retreats 2 | . 1 1 Traps | -11 -10 -10 ------- Run | Yrd Mat Min Traps Triggered 1 | . 1 . Indirectly . | . . . Trap Hack Attempts . | . . . Triggered . | . . . Disarmed . | . . . Reprogrammed . | . . . Reused . | . . . Traps Extracted . | . . . Installed 4 | . . 4 Triggered . | . . . Most Traps Carried 1 | . . 1 Machines | -11 -10 -10 ---------- Run | Yrd Mat Min Machines Disabled 2 | . 2 . Max in Single Turn 1 | . 1 . Machines Repaired . | . . . Machines Dismantled . | . . . Machines Sabotaged . | . . . Overloaded Fab Kills . | . . . Hacking | -11 -10 -10 --------- Run | Yrd Mat Min Machines Accessed 8 | . 8 . Terminals 7 | . 7 . Fabricators . | . . . Repair Stations 1 | . 1 . Recycling Units . | . . . Scanalyzers . | . . . Garrison Access . | . . . Total Hacks 22 | . 22 . Successful 7 | . 7 . Failed 15 | . 15 . Catastrophic 1 | . 1 . Database Lockouts . | . . . Manual 12 | . 12 . Terminals 19 | . 19 . Fabricators . | . . . Repair Stations 3 | . 3 . Recycling Units . | . . . Scanalyzers . | . . . Garrison Access . | . . . Terminal Hacks 5 | . 5 . Robot Analysis 3 | . 3 . Prototype ID Bank 1 | . 1 . Locate Traps 1 | . 1 . Fabricator Hacks . | . . . Repair Station Hacks 1 | . 1 . Scan Component 1 | . 1 . Recycling Unit Hacks . | . . . Scanalyzer . | . . . Garrison Access Hacks . | . . . Unauthorized Hacks 1 | . 1 . Terminals 1 | . 1 . Operators 1 | . 1 . Fabricators . | . . . Repair Stations . | . . . Recycling Units . | . . . Scanalyzers . | . . . Garrison Access . | . . . Data Cores Recovered . | . . . Used . | . . . Hacking Detections 8 | . 8 . Full Trace Events 2 | . 2 . Feedback Events . | . . . Feedback Blocked . | . . . Robot Schematics Acquired . | . . . Robots Built . | . . . Authchips . | . . . Time . | . . . Total Robot Build Rating . | . . . Part Schematics Acquired . | . . . Parts Built . | . . . Authchips . | . . . Time . | . . . Total Part Build Rating . | . . . Part Studies Acquired . | . . . Parts Repaired . | . . . Time . | . . . Parts Recycled . | . . . Recycled Matter . | . . . Retrieved Matter . | . . . Retrieved Components . | . . . Parts Scanalyzed . | . . . Part Schematics Acquired . | . . . Parts Damaged . | . . . Bothacking | -11 -10 -10 ------------ Run | Yrd Mat Min Used RIF Installer . | . . . Robots Hacked . | . . . Non-combat . | . . . Combat . | . . . Robot Hacks Applied . | . . . Relay Couplers Released . | . . . Fabnet Peak Effective % . | . . . Robots Rewired . | . . . Allies Hacked . | . . . Hacks Repelled . | . . . Allies | -11 -10 -10 -------- Run | Yrd Mat Min Total Allies . | . . . Largest Group . | . . . Highest-Rated Group . | . . . Highest-Rated Ally . | . . . Total Orders . | . . . Ally Attacks . | . . . Total Damage . | . . . Kills . | . . . Allies Corrupted . | . . . Allies Melted . | . . . Intel | -11 -10 -10 ------- Run | Yrd Mat Min Active Infowar (turns) 656 | 50 606 . Terrain 656 | 50 606 . Robot Analysis Total 3 | . 3 . Derelict Logs Recovered 1 | . . 1 Drone Launches . | . . . Drone Recoveries . | . . . Exploration | -11 -10 -10 ------------- Run | Yrd Mat Min Turns Passed 1316 | 121 922 273 Spaces Moved 652 | 47 437 168 Core 5 | 5 . . Treads 547 | 42 437 68 Legs . | . . . Wheels 100 | . . 100 Hover . | . . . Flight . | . . . Fastest Speed 50 | 50 160 105 Average Speed 150 | 148 160 127 Slowest Speed 160 | 160 160 160 Overloaded Moves . | . . . Propulsion Burnouts . | . . . Robots Hopped . | . . . Potential Cave-ins . | . . . Cave-ins Triggered . | . . . Exploration Rate (%) 38 | 4 74 36 Regions Visited 2 Branch Regions 1 Pre-discovered Areas . | . . . Known Exits Taken . | . . . Unknown Exits Taken 2 | 1 1 . Scrap Searched 1 | . . 1 Spaces Dug . | . . . Terrain Destroyed 29 | 6 23 . Melee . | . . . Projectile . | . . . AOE 29 | 6 23 . Terrain Rammed . | . . . Walls Destroyed . | . . . Machines Disabled . | . . . Actions | -11 -10 -10 --------- Run | Yrd Mat Min Total 810 | 75 538 197 Wait 5 | . 4 1 Move 650 | 46 436 168 Hop . | . . . Pick Up 24 | 9 14 1 Fast Attach 7 | 7 . . Attach 5 | . 3 2 Detach . | . . . Swap 5 | 1 4 . Drop 9 | 1 7 1 Fire 101 | 11 70 20 Melee . | . . . Ram . | . . . Kick . | . . . Crush . | . . . Escape Stasis . | . . . Rewire . | . . . Trap 4 | . . 4 Miscellaneous . | . . . Route ------- -11/Scrapyard -10/Materials (discovered 3 exits: [*Mat x2] / [*Min]) -10/Mines (discovered 3 exits: [*Mat x2] / [*Sub]) History --------- Turn | Location | Event 15 | -11/Scrapyard | Discovered new exit (range 15) 122 | -11/Scrapyard | Entered Materials 318 | -10/Materials | Build established: Mutant 619 | -10/Materials | Core integrity fell below 50% 633 | -10/Materials | Discovered new exit (range 11) 862 | -10/Materials | Discovered new exit (range 8) 901 | -10/Materials | Core integrity fell below 20% 1020 | -10/Materials | Discovered new exit (range 10) 1044 | -10/Materials | Entered Mines 1120 | -10/Mines | Found a hidden stash of uninstalled traps 1153 | -10/Mines | Discovered new exit (range 5) 1196 | -10/Mines | Discovered new exit (range 11) 1239 | -10/Mines | Discovered new exit (range 11) 1317 | -10/Mines | Destroyed by G-47 Trooper with Particle Gun Last Messages --------------- 01175_ R-06 Scavenger collects Flight Unit. 01175_ Lgt. Treads destroyed. 01180_ R-06 Scavenger collects Flight Unit. 01181_ R-06 Scavenger collects Lgt. Assault Rifle. 01188_ S-10 Pest destroyed. 01190_ R-06 Scavenger collects Lgt. Assault Rifle. 01190_ R-06 Scavenger destroyed. 01196_ Acquired 32 matter. 01196_ EXIT=FOUND 01200_ R-06 Scavenger collects Sml. Storage Unit. 01202_ R-06 Scavenger collects Flight Unit. 01203_ R-06 Scavenger collects Lgt. Assault Rifle. 01206_ R-06 Scavenger collects Lgt. Ion Engine. 01206_ R-06 Scavenger collects Flight Unit. 01209_ R-06 Scavenger collects Com. Wheel. 01213_ Acquired 4 matter. 01230_ Acquired 2 matter. 01239_ EXIT=FOUND 01245_ Acquired derelict log, extracted data. Data stored: Storage entrances (x1). Map ----- +----------------------------------------------------+ | ?????????????# ###???## ##?????????????? | | ?????????????## #???????### ##??????????????? | | ??#######?????###??????????# #???????????????? | | ??# #????????########### #???????????????? | | ??# #????????# ## #???????????????? | | ??# < ########## ## #???????????????? | | ??# %%%*=%=! < ## ##???????????????? | | ??# ########## ## #????????????????? | | ??# #????????# ## #????????????????? | | ??#######????????#### #### #????????????????? | | ????????????????##### #??# #????????????????? | | ????????????????#!]%[ #??# #????????????????? | | ????????????????# #####??# #????????????????? | | ????????????????# #??????# #????????????????? | | ??????#<#???????#%#??????# #????????????????? | | ?????## ###### ##?????# #????????????????? | | ?????# ##????# #????????????????? | | ?????# ##???# #????????????????? | | ?????# ##### ^^ #???# #????????????????? | | ?????##???????# ^ ^ ##### #????????????????? | | ??????????????# #????????????????? | | ????????####??## #????????????????? | | ???????## ######## #########????????????????? | | ???????# #### #????????????????????????? | | ???????# g #############????????????? | | ???????# ### @ t r #?????? | | ???????# ##?###############????????????? | | ???????# ####?????????????????????????????? | | ???????# ##????????????????????????????????? | | ??????## ##?????????????????????????????????? | | ??????# #??????????????????????????????????? | | ??????# ##??????????????????????????????????? | | ?????## #???????????????????????????????????? | | ???### #???????????????????????????????????? | | ???# ##??????????????????????????????????? | | ???# ##?????????????????????????????????? | | ???## ####??????????????????????????????? | | ????### ##?????????????????????????????? | | ??????### #?????????????????????????????? | | ????????## #?????##??????????????????????? | | ?????????## #??? #??????????????????????? | | ?????????## ## ##?????????????????????? | | ?????????# #?????????????????????? | | ?????????# #?????????????????????? | | ?????????#### #????????????????? | | ????????????## # #????????????????? | | ?????????????# ###??### #????????????????? | | ????????????? ##?????????????????????????? | | ????????????? ##??????????????????????????? | | ???????????? ##???????????????????????????? | +----------------------------------------------------+ Best States ------------- Heat Dissipation 25 Energy Generation 10 Energy Capacity 250 Matter Stores 300 Matter Capacity 300 Sight Range 16 Terrain Scan Range 16 Terrain Scan Density 10 Armor Coverage 150 Evasion (%) 40 Recoil Reduction 2 Item Schematics ----------------- None Robot Schematics ------------------ None Fabricated ------------ Nothing Repaired ---------- Nothing Studied --------- None Alien Tech Used ----------------- None Achievements -------------- None Challenges ------------ None Game ------ Seed FortressExoskeletonLeg Manual? 0 Play Time 00:12:05 Cumulative 957.5 hours Start 2026.08.25 @ 18:28:38 End 2026.08.25 @ 18:39:20 Sessions 1 Manual Loads 0 Difficulty Rogue Special Mode None Game No. 161 Rogue 129 Adventurer 32 Explorer 0 Win Type - Total 34 Types 20/3/3/3/1/0/1/1/0/2 Lore% 85 Gallery% 88 Achievement% 66 Wizard Run 0 Options --------- Layout 0 ASCII 0 Keyboard 0 Movement Mouse Keybinds 0 Fullscreen 1 Font 36/Smallcaps Map View 76x50 Zoom Use 0% Tactical HUD 1 Map Filters SHIFT_HUE(360) Filters NONE Steam 1 RUN: 00191298-9905-43f1-9647-aaf116b44572